fUSD/lending_fUSD_20251130
["ID","MTS","AMOUNT","RATE_DAILY","PERIOD"]
[395146723,1764478241966,-500.0,0.00015205,2]
[395146724,1764478241975,-500.0,0.00015205,2]
[395146725,1764478241984,-166.66,0.00015226,2]
[395146726,1764478241993,-10571.07,0.00015237,2]
[395146727,1764478242002,-999.0,0.00015237,3]
[395146728,1764478242011,-377.99422755,0.00015259,2]
[395146729,1764478242020,-150.0,0.00015288,2]
[395146730,1764478242030,-150.0,0.00015288,2]
[395146731,1764478242039,-150.0,0.00015288,2]
[395146732,1764478242047,-150.32345624,0.00015288,2]
[395146733,1764478242057,-150.0,0.00015288,2]
[395146734,1764478242066,-150.0,0.00015288,2]
[395146735,1764478242075,-150.0,0.00015288,2]
[395146736,1764478242084,-150.0,0.00015288,2]
[395146737,1764478242093,-150.55049466,0.00015288,2]
[395146738,1764478242102,-150.0,0.00015288,2]
[395146739,1764478242111,-150.0,0.00015288,2]
[395146740,1764478242120,-150.0,0.00015288,2]
[395146741,1764478242129,-461.0,0.00015342,2]
[395146742,1764478242139,-483.0,0.00015342,2]
[395146743,1764478242157,-500.0,0.00015342,2]
[395146744,1764478242167,-500.0,0.00015342,2]
[395146745,1764478242176,-150.0,0.00015369,2]
[395146746,1764478242186,-150.0,0.00015382,2]
[395146747,1764478242195,-150.0,0.00015429,2]
[395146748,1764478242204,-166.66,0.00015436,2]
[395146749,1764478242214,-150.0,0.00015442,2]
[395146750,1764478242223,-150.0,0.00015449,2]
[395146751,1764478242232,-150.0,0.00015458,2]
[395146752,1764478242241,-433.0,0.00015476,2]
[395146753,1764478242250,-150.0,0.00015476,2]
[395146754,1764478242259,-461.0,0.00015479,2]
[395146755,1764478242272,-483.0,0.00015479,2]
[395146756,1764478242281,-500.0,0.00015479,2]
[395146757,1764478242291,-500.0,0.00015479,2]
[395146758,1764478242301,-150.0,0.000155,2]
[395146759,1764478242311,-150.0,0.0001553,2]
[395146760,1764478242320,-150.0,0.0001553,2]
[395146761,1764478242329,-150.0,0.00015571,2]
[395146762,1764478242339,-150.0,0.00015571,2]
[395146763,1764478242348,-150.0,0.00015597,2]
[395146764,1764478242358,-150.0,0.00015611,2]
[395146765,1764478242368,-461.0,0.00015616,2]
[395146766,1764478242377,-483.0,0.00015616,2]
[395146767,1764478242387,-500.0,0.00015616,2]
[395146768,1764478242396,-461.93375674,0.00015616,2]
[395146769,1764478242405,-151.0,0.00015617,2]
[395146770,1764478242414,-150.0,0.00015627,2]
[395146771,1764478242424,-150.0,0.00015665,2]
[395146772,1764478242434,-166.66,0.00015683,2]
[395146773,1764478242446,-150.0,0.00015692,2]
[395146774,1764478242456,-150.0,0.00015712,2]
[395146775,1764478242465,-150.0,0.00015712,2]
[395146776,1764478242474,-587.0,0.00015718,2]
[395146777,1764478242484,-166.66,0.00015735,2]
[395146778,1764478242493,-150.0,0.00015751,2]
[395146779,1764478242503,-461.0,0.00015753,2]
[395146780,1764478242512,-483.0,0.00015753,2]
[395146781,1764478242522,-500.0,0.00015753,2]
[395146782,1764478242531,-150.0,0.0001576,2]
[395146783,1764478242540,-500.0,0.0001577,2]
[395146784,1764478242549,-500.0,0.0001577,2]
[395146785,1764478242559,-500.0,0.0001577,2]
[395146786,1764478242568,-524.40679433,0.0001577,2]
[395146787,1764478242578,-500.0,0.0001577,2]
[395146788,1764478242588,-500.0,0.0001577,2]
[395146789,1764478242597,-173.88347713,0.0001577,2]
[395146790,1764478242606,-500.0,0.0001577,2]
[395146791,1764478242616,-648.97949028,0.0001577,2]
[395146792,1764478242625,-512.38673853,0.0001577,2]
[395146793,1764478242634,-500.0,0.0001577,2]
[395146794,1764478242644,-150.0,0.00015773,2]
[395146795,1764478242653,-150.0,0.00015773,2]
[395146796,1764478242664,-150.0,0.00015797,2]
[395146797,1764478242674,-377.99422755,0.00015806,2]
[395146798,1764478242684,-2351.0,0.00015816,2]
[395146799,1764478242693,-150.0,0.00015854,2]
[395146800,1764478242707,-150.0,0.00015854,2]
[395146801,1764478242717,-150.0,0.00015854,2]
[395146802,1764478242726,-150.0,0.00015854,2]
[395146803,1764478242736,-150.0,0.00015854,2]
[395146804,1764478242746,-461.0,0.0001589,2]
[395146805,1764478242755,-483.0,0.0001589,2]
[395146806,1764478242765,-587.79826492,0.0001589,2]
[395146807,1764478242775,-4259.34887126,0.000159,2]
[395146808,1764478242785,-150.0,0.00015905,2]
[395146809,1764478242794,-356.21253512,0.0001591,2]
[395146810,1764478242804,-150.0,0.00015925,2]
[395146811,1764478242815,-150.0,0.00015935,2]
[395146812,1764478242824,-150.0,0.00015948,2]
[395146813,1764478242834,-150.0,0.00015967,2]
[395146814,1764478242844,-500.67033619,0.00015973,2]
[395146815,1764478242854,-500.0,0.00015973,2]
[395146816,1764478242864,-168.83814577,0.00015973,2]
[395146817,1764478242874,-500.0,0.00015973,2]
[395146818,1764478242884,-500.88533786,0.00015973,2]
[395146819,1764478242893,-545.80271006,0.00015973,2]
[395146820,1764478242903,-161.07388452,0.00015973,2]
[395146821,1764478242912,-500.0,0.00015973,2]
[395146822,1764478242923,-503.30230408,0.00015973,2]
[395146823,1764478242933,-500.0,0.00015973,2]
[395146824,1764478242942,-176.19485435,0.00015973,2]
[395146825,1764478242952,-500.0,0.00015973,2]
[395146826,1764478242961,-165.08638781,0.00015973,2]
[395146827,1764478242971,-500.0,0.00015973,2]
[395146828,1764478242982,-500.0,0.00015973,2]
[395146829,1764478242992,-504.72891622,0.00015973,2]
[395146830,1764478243002,-500.0,0.00015973,2]
[395146831,1764478243011,-500.0,0.00015973,2]
[395146832,1764478243020,-500.0,0.00015973,2]
[395146833,1764478243031,-500.0,0.00015973,2]
[395146834,1764478243040,-500.0,0.00015973,2]
[395146835,1764478243049,-500.46020966,0.00015973,2]
[395146836,1764478243058,-160.04783372,0.00015973,2]
[395146837,1764478243068,-160.07187961,0.00015973,2]
[395146838,1764478243080,-500.0,0.00015973,2]
[395146839,1764478243091,-215.69681959,0.00015973,2]
[395146840,1764478243101,-500.0,0.00015973,2]
[395146841,1764478243112,-316.03350375,0.00015973,2]
[395146842,1764478243121,-500.0,0.00015973,2]
[395146843,1764478243131,-500.0,0.00015973,2]
[395146844,1764478243141,-500.0,0.00015973,2]
[395146845,1764478243152,-150.0,0.00015995,2]
[395146846,1764478243162,-150.0,0.00016016,2]
[395146847,1764478243172,-150.0,0.00016016,2]
[395146848,1764478243182,-461.0,0.00016027,2]
[395146849,1764478243192,-483.0,0.00016027,2]
[395146850,1764478243201,-150.0,0.00016043,2]
[395146851,1764478243211,-150.0,0.0001606,2]
[395146852,1764478243221,-150.0,0.00016097,2]
[395146853,1764478243231,-150.0,0.00016137,2]
[395146854,1764478243241,-150.0,0.00016137,2]
[395146858,1764478243648,-150.0,0.00016137,2]
[395146859,1764478243662,-150.0,0.00016137,2]
[395146861,1764478243672,-166.66,0.0001614,2]
[395146862,1764478243682,-461.0,0.00016164,2]
[395146863,1764478243692,-483.0,0.00016164,2]
[395146864,1764478243702,-151.0,0.00016165,2]
[395146865,1764478243712,-150.0,0.00016177,2]
[395146866,1764478243723,-150.0,0.00016214,2]
[395146867,1764478243732,-150.0,0.00016231,2]
[395146868,1764478243742,-150.0,0.00016258,2]
[395146869,1764478243751,-150.0,0.00016258,2]
[395146870,1764478243761,-150.0,0.00016279,2]
[395146871,1764478243771,-461.0,0.00016301,2]
[395146872,1764478243781,-483.0,0.00016301,2]
[395146873,1764478243791,-150.0,0.00016307,2]
[395146874,1764478243801,-150.0,0.00016326,2]
[395146875,1764478243811,-150.0,0.00016339,2]
[395146876,1764478243821,-150.0,0.00016349,2]
[395146877,1764478243831,-150.0,0.00016369,2]
[395146878,1764478243841,-150.0,0.0001642,2]
[395146879,1764478243851,-150.0,0.0001642,2]
[395146880,1764478243861,-150.0,0.0001642,2]
[395146881,1764478243870,-150.0,0.0001642,2]
[395146882,1764478243881,-150.0,0.0001642,2]
[395146883,1764478243891,-250.0,0.00016426,2]
[395146884,1764478243902,-461.0,0.00016438,2]
[395146885,1764478243911,-483.0,0.00016438,2]
[395146886,1764478243921,-150.0,0.00016438,2]
[395146887,1764478243930,-500.0,0.00016438,2]
[395146888,1764478243940,-500.0,0.00016438,2]
[395146889,1764478243950,-500.0,0.00016438,2]
[395146890,1764478243959,-500.0,0.00016438,2]
[395146891,1764478243969,-500.0,0.00016438,2]
[395146892,1764478243978,-500.0,0.00016438,2]
[395146893,1764478243988,-500.0,0.00016438,2]
[395146894,1764478243997,-500.0,0.00016438,2]
[395146895,1764478244007,-500.0,0.00016438,2]
[395146896,1764478244016,-500.0,0.00016438,2]
[395146897,1764478244025,-642.79221301,0.00016438,2]
[395146898,1764478244034,-500.0,0.00016438,2]
[395146899,1764478244043,-500.0,0.00016438,2]
[395146900,1764478244053,-500.0,0.00016438,2]
[395146901,1764478244063,-500.0,0.00016438,2]
[395146902,1764478244072,-500.0,0.00016438,2]
[395146903,1764478244082,-500.0,0.00016438,2]
[395146904,1764478244092,-500.0,0.00016438,2]
[395146905,1764478244101,-500.0,0.00016438,2]
[395146906,1764478244112,-500.0,0.00016438,2]
[395146907,1764478244121,-500.0,0.00016438,2]
[395146908,1764478244131,-500.0,0.00016438,2]
[395146909,1764478244141,-500.0,0.00016438,2]
[395146910,1764478244151,-500.0,0.00016438,2]
[395146911,1764478244160,-500.0,0.00016438,2]
[395146912,1764478244170,-500.0,0.00016438,2]
[395146913,1764478244180,-500.0,0.00016438,2]
[395146914,1764478244190,-500.0,0.00016438,2]
[395146915,1764478244200,-500.0,0.00016438,2]
[395146916,1764478244210,-150.0,0.00016477,2]
[395146917,1764478244219,-150.0,0.00016501,2]
[395146918,1764478244228,-150.0,0.00016501,2]
[395146919,1764478244238,-150.0,0.00016514,2]
[395146920,1764478244247,-500.0,0.0001652,2]
[395146921,1764478244257,-916.80275832,0.00016521,2]
[395146922,1764478244270,-501.57760606,0.00016521,2]
[395146923,1764478244280,-1001.35128612,0.00016521,2]
[395146924,1764478244290,-1000.0,0.00016521,2]
[395146925,1764478244299,-1000.0,0.00016521,2]
[395146926,1764478244308,-1000.745763,0.00016521,2]
[395146927,1764478244317,-1000.0,0.00016521,2]
[395146928,1764478244326,-1000.0,0.00016521,2]
[395146929,1764478244336,-1000.0,0.00016521,2]
[395146930,1764478244345,-500.92969355,0.00016521,2]
[395146931,1764478244355,-1018.43163791,0.00016521,2]
[395146932,1764478244364,-1000.0,0.00016521,2]
[395146933,1764478244374,-1000.0,0.00016521,2]
[395146934,1764478244383,-1000.0,0.00016521,2]
[395146935,1764478244393,-495.14510969,0.00016521,2]
[395146936,1764478244403,-193.94586418,0.00016521,2]
[395146937,1764478244413,-502.56103431,0.00016521,2]
[395146938,1764478244422,-150.0,0.00016523,2]
[395146939,1764478244432,-150.0,0.00016562,2]
[395146940,1764478244442,-150.0,0.00016562,2]
[395146941,1764478244451,-461.0,0.00016575,2]
[395146942,1764478244460,-483.0,0.00016575,2]
[395146943,1764478244470,-150.0,0.00016575,2]
[395146944,1764478244480,-500.0,0.00016575,2]
[395146945,1764478244489,-150.0,0.00016582,2]
[395146946,1764478244499,-150.0,0.00016609,2]
[395146947,1764478244509,-150.0,0.00016647,2]
[395146948,1764478244519,-150.0,0.00016663,2]
[395146949,1764478244528,-150.0,0.00016677,2]
[395146950,1764478244538,-150.0,0.00016703,2]
[395146951,1764478244548,-150.0,0.00016703,2]
[395146952,1764478244557,-461.0,0.00016712,2]
[395146953,1764478244567,-483.0,0.00016712,2]
[395146954,1764478244576,-179.75220737,0.00016712,2]
[395146955,1764478244587,-500.0,0.00016712,2]
[395146956,1764478244596,-237.3246584,0.00016713,2]
[395146957,1764478244606,-217.0117227,0.00016722,2]
[395146958,1764478244616,-150.0,0.00016744,2]
[395146959,1764478244626,-150.0,0.00016744,2]
[395146960,1764478244636,-150.0,0.00016774,2]
[395146961,1764478244645,-736.0,0.0001678,2]
[395146962,1764478244655,-1520.19807694,0.00016794,2]
[395146963,1764478244663,-150.0,0.00016798,2]
[395146964,1764478244673,-275.99,0.000168,2]
[395146965,1764478244683,-150.0,0.00016816,2]
[395146966,1764478244692,-150.0,0.00016825,2]
[395146967,1764478244702,-150.0,0.00016832,2]
[395146968,1764478244711,-150.0,0.00016845,2]
[395146969,1764478244721,-463.7551994,0.00016849,2]
[395146970,1764478244731,-487.05232631,0.00016849,2]
[395146971,1764478244740,-500.0,0.00016849,2]
[395146972,1764478244750,-1000.0,0.00016858,2]
[395146973,1764478244759,-222.29257723,0.00016862,2]
[395146974,1764478244769,-200.0,0.00016864,2]
[395146975,1764478244782,-985.43015279,0.00016873,2]
[395146976,1764478244791,-150.0,0.00016892,2]
[395146977,1764478244802,-201.41866534,0.000169,2]
[395146978,1764478244812,-390.47377755,0.000169,2]
[395146979,1764478244823,-441.01777814,0.000169,2]
[395146980,1764478244832,-183.66617545,0.000169,2]
[395146981,1764478244844,-500.0,0.000169,2]
[395146982,1764478244854,-500.0,0.000169,2]
[395146983,1764478244863,-500.0,0.000169,2]
[395146984,1764478244874,-500.0,0.000169,2]
[395146985,1764478244883,-500.0,0.000169,2]
[395146986,1764478244893,-500.0,0.000169,2]
[395146987,1764478244902,-500.0,0.000169,2]
[395146988,1764478244913,-500.0,0.000169,2]
[395146989,1764478244922,-500.0,0.000169,2]
[395146990,1764478244932,-500.0,0.000169,2]
[395146991,1764478244941,-500.0,0.000169,2]
[395146992,1764478244951,-500.0,0.000169,2]
[395146993,1764478244961,-500.0,0.000169,2]
[395146994,1764478244971,-500.0,0.000169,2]
[395146995,1764478244980,-500.0,0.000169,2]
[395146996,1764478244990,-500.0,0.000169,2]
[395146997,1764478245002,-197.92719606,0.000169,2]
[395146998,1764478245012,-150.0,0.00016905,2]
[395146999,1764478245022,-500.0,0.00016972,2]
[395147000,1764478245031,-509.39630906,0.00016972,2]
[395147001,1764478245041,-500.0,0.00016972,2]
[395147002,1764478245050,-500.0,0.00016972,2]
[395147003,1764478245059,-183.05840034,0.00016972,2]
[395147004,1764478245068,-500.0,0.00016972,2]
[395147005,1764478245078,-500.0,0.00016972,2]
[395147006,1764478245087,-500.0,0.00016973,2]
[395147007,1764478245097,-500.0,0.00016973,2]
[395147008,1764478245107,-500.0,0.00016973,2]
[395147009,1764478245116,-167.3210545,0.00016973,2]
[395147010,1764478245126,-500.0,0.00016973,2]
[395147011,1764478245136,-366.95471126,0.00016973,2]
[395147012,1764478245146,-502.42313954,0.00016973,2]
[395147014,1764478245156,-162.090508,0.00016973,2]
[395147015,1764478245165,-500.0,0.00016973,2]
[395147016,1764478245174,-176.66973248,0.00016973,2]
[395147017,1764478245183,-500.838144,0.00016973,2]
[395147018,1764478245193,-500.0,0.00016973,2]
[395147019,1764478245202,-500.49965341,0.00016973,2]
[395147020,1764478245212,-500.0,0.00016973,2]
[395147021,1764478245222,-500.0,0.00016973,2]
[395147022,1764478245235,-500.0,0.00016973,2]
[395147023,1764478245244,-415.54250471,0.00016973,2]
[395147024,1764478245253,-507.2295556,0.00016973,2]
[395147025,1764478245266,-500.0,0.00016973,2]
[395147026,1764478245278,-500.0,0.00016973,2]
[395147027,1764478245288,-500.0,0.00016973,2]
[395147028,1764478245297,-500.38978168,0.00016973,2]
[395147029,1764478245307,-500.0,0.00016973,2]
[395147030,1764478245317,-500.0,0.00016973,2]
[395147031,1764478245327,-500.0,0.00016973,2]
[395147032,1764478245339,-500.0,0.00016973,2]
[395147033,1764478245349,-500.0,0.00016973,2]
[395147034,1764478245359,-500.0,0.00016973,2]
[395147035,1764478245369,-215.92719524,0.00016973,2]
[395147036,1764478245378,-500.0,0.00016973,2]
[395147037,1764478245388,-281.71884417,0.00016973,2]
[395147038,1764478245398,-500.0,0.00016973,2]
[395147039,1764478245408,-500.0,0.00016973,2]
[395147040,1764478245419,-500.0,0.00016973,2]
[395147041,1764478245429,-500.0,0.00016973,2]
[395147042,1764478245439,-187.03419553,0.00016973,2]
[395147043,1764478245448,-500.0,0.00016973,2]
[395147044,1764478245459,-500.0,0.00016973,2]
[395147045,1764478245469,-500.0,0.00016973,2]
[395147046,1764478245478,-500.0,0.00016973,2]
[395147047,1764478245488,-500.0,0.00016983,2]
[395147048,1764478245498,-500.0,0.00016986,2]
[395147049,1764478245509,-1347.0,0.00016986,2]
[395147050,1764478245518,-204.30018079,0.00016986,2]
[395147051,1764478245528,-150.10346577,0.00016986,2]
[395147052,1764478245538,-165.6418434,0.00016986,2]
[395147053,1764478245547,-151.57196874,0.00016986,2]
[395147054,1764478245557,-239.89101121,0.00016986,2]
[395147055,1764478245567,-155.69497856,0.00016986,2]
[395147056,1764478245577,-168.80232589,0.00016986,2]
[395147057,1764478245587,-152.51466941,0.00016986,2]
[395147058,1764478245596,-152.10525801,0.00016986,2]
[395147059,1764478245607,-244.26630786,0.00016986,2]
[395147060,1764478245616,-222.23133542,0.00016989,2]
[395147061,1764478245627,-222.23133542,0.0001699,2]
[395147062,1764478245636,-151.0,0.00016997,2]
[395147063,1764478245645,-500.0,0.00016998,2]
[395147064,1764478245655,-500.0,0.00016999,2]
[395147065,1764478245664,-522.79968162,0.00016999,2]
[395147066,1764478245674,-191283.9445905,0.00016999,2]
[395147067,1764478245685,-500.0,0.00016999,2]
[395147068,1764478245694,-562.09588733,0.00016999,2]
[395147069,1764478245704,-500.0,0.00016999,2]
[395147070,1764478245715,-500.0,0.00016999,2]
[395147071,1764478245724,-349.68798238,0.00016999,2]
[395147072,1764478245733,-556.83585957,0.00016999,2]
[395147073,1764478245743,-300.0,0.00016999,2]
[395147074,1764478245752,-519.32805224,0.00016999,2]
[395147075,1764478245761,-300.0,0.00016999,2]
[395147076,1764478245775,-300.0,0.00016999,2]
[395147077,1764478245785,-300.0,0.00016999,2]
[395147078,1764478245794,-500.0,0.00016999,2]
[395147079,1764478245804,-500.0,0.00016999,2]
[395147080,1764478245814,-500.0,0.00016999,2]
[395147081,1764478245825,-500.0,0.00016999,2]
[395147082,1764478245835,-500.0,0.00016999,2]
[395147083,1764478245845,-500.0,0.00016999,2]
[395147084,1764478245855,-500.0,0.00016999,2]
[395147085,1764478245866,-500.0,0.00016999,2]
[395147086,1764478245876,-500.0,0.00016999,2]
[395147087,1764478245885,-500.0,0.00016999,2]
[395147088,1764478245895,-500.0,0.00016999,2]
[395147089,1764478245905,-500.0,0.00016999,2]
[395147090,1764478245914,-500.0,0.00016999,2]
[395147091,1764478245924,-500.0,0.00016999,2]
[395147092,1764478245934,-500.0,0.00016999,2]
[395147093,1764478245943,-191.9483848,0.00016999,2]
[395147094,1764478245953,-1222552.63008305,0.00017,2]
[395147095,1764478245964,-5025542.30279673,0.00017,2]
[395147096,1764478246014,-30926.49769831,0.00017,2]
[395147099,1764478246478,-2326611.28134905,0.00017,2]
[395147100,1764478247234,-1.7e-07,0.00017,2]
[395147107,1764478252194,259.64006885,0.00013071,2]
[395147108,1764478252222,240.35993115,0.00013071,2]
[395147109,1764478252261,500.0,0.00013071,2]
[395147110,1764478252302,500.0,0.00013071,2]
[395147111,1764478252342,500.0,0.00013071,2]
[395147112,1764478252381,500.0,0.00013071,2]
[395147113,1764478252425,500.0,0.00013071,2]
[395147114,1764478252483,500.0,0.00013071,2]
[395147115,1764478252527,500.0,0.00013071,2]
[395147116,1764478252566,500.0,0.00013071,2]
[395147117,1764478252605,500.0,0.00013071,2]
[395147118,1764478252644,500.0,0.00013071,2]
[395147119,1764478252691,500.0,0.00013071,2]
[395147120,1764478252730,500.0,0.00013071,2]
[395147138,1764478333458,10000.01,0.00013072,2]
[395147139,1764478333485,10000.01,0.00013072,2]
[395147140,1764478333511,10000.01,0.00013072,2]
[395147141,1764478333537,10000.01,0.00013072,2]
[395147142,1764478333562,10000.01,0.00013072,2]
[395147143,1764478333587,10000.01,0.00013072,2]
[395147144,1764478333613,10000.01,0.00013072,2]
[395147145,1764478333639,10000.01,0.00013072,2]
[395147146,1764478333665,10000.01,0.00013072,2]
[395147147,1764478333691,10000.01,0.00013072,2]
[395147148,1764478350245,209.97594425,0.00013071,2]
[395147149,1764478352179,166.95589174,0.00013071,2]
[395147150,1764478352227,300.06321206,0.00013071,2]
[395147152,1764478373090,1200.0,0.00013071,2]
[395147153,1764478375509,242.434925,0.00013006,2]
[395147156,1764478441912,150.0,0.00013071,2]
[395147157,1764478468375,210.04424844,0.00013071,2]
[395147161,1764478475212,-1789.81798889,0.00013072,2]
[395147162,1764478477464,-268.27429584,0.00013072,2]
[395147163,1764478478934,-500.0,0.00013072,2]
[395147164,1764478482062,-324.43492454,0.00013072,2]
[395147165,1764478484211,-184.82968071,0.00013072,2]
[395147166,1764478485770,-200.63795196,0.00013072,2]
[395147167,1764478488602,-415.26373283,0.00013072,2]
[395147168,1764478492604,-394.41304336,0.00013072,2]
[395147239,1764478499516,3190.32984207,0.00022,30]
[395147242,1764478501469,1200.0,0.00013071,2]
[395147243,1764478501506,300.0,0.00013071,2]
[395147246,1764478549747,162.45,0.00019178,30]
[395147247,1764478580176,-299.36204804,0.00013072,2]
[395147248,1764478582373,4832.191981,0.00012972,2]
[395147250,1764478621919,150.0,0.00013071,2]
[395147264,1764478673147,637.0,0.00013071,2]
[395147269,1764478681274,300.0,0.00013071,2]
[395147270,1764478702982,101.34379751,0.00012972,2]
[395147271,1764478703005,10000.01,0.00012972,2]
[395147272,1764478703029,4331.94636224,0.00012972,2]
[395147274,1764478741301,300.0,0.00013071,2]
[395147275,1764478763380,222.65722626,0.00012972,2]
[395147285,1764478891827,9477.35277374,0.00013071,2]
[395147286,1764478891852,8013.35443671,0.00013071,2]
[395147287,1764478892804,1986.65556329,0.0001281,2]
[395147288,1764478892828,2091.55243671,0.0001281,2]
[395147289,1764478892863,183.865,0.0001281,2]
[395147292,1764478904964,2500.0,0.00012972,2]
[395147295,1764478921226,300.0,0.00013071,2]
[395147301,1764478977000,4348.9727829,0.00012972,2]
[395147302,1764478982326,150.0,0.00013071,2]
[395147306,1764479009947,425.61978039,0.00012972,2]
[395147307,1764479009995,574.38021961,0.00012972,2]
[395147310,1764479041314,300.0,0.00013071,2]
[395147315,1764479079815,9125.62978039,0.00012972,2]
[395147316,1764479079838,10000.01,0.00012972,2]
[395147317,1764479079860,10000.01,0.00012972,2]
[395147318,1764479079882,10000.01,0.00012972,2]
[395147319,1764479079905,10000.01,0.00012972,2]
[395147320,1764479079928,10000.01,0.00012972,2]
[395147321,1764479079951,5326.06361961,0.00012972,2]
[395147324,1764479101659,300.0,0.00013071,2]
[395147325,1764479101704,1200.0,0.00013071,2]
[395147328,1764479123289,8500.01,0.00012972,2]
[395147329,1764479123313,4489.96014373,0.00012972,2]
[395147335,1764479161259,300.0,0.00013071,2]
[395147336,1764479162329,150.0,0.00013071,2]
[395147350,1764479221238,300.0,0.00013071,2]
[395147441,1764479281404,300.0,0.00013071,2]
[395147463,1764479359455,4460.04985627,0.00012972,2]
[395147464,1764479359484,10000.01,0.00012972,2]
[395147465,1764479359512,10000.01,0.00012972,2]
[395147466,1764479359539,10000.01,0.00012972,2]
[395147467,1764479359565,10000.01,0.00012972,2]
[395147468,1764479359592,10000.01,0.00012972,2]
[395147469,1764479359617,10000.01,0.00012972,2]
[395147470,1764479359655,10000.01,0.00012972,2]
[395147471,1764479359683,10000.01,0.00012972,2]
[395147472,1764479401447,300.0,0.00012971,2]
[395147473,1764479401498,1200.0,0.00012971,2]
[395147474,1764479401537,300.0,0.00012971,2]
[395147475,1764479405226,-424.31960322,0.00012972,2]
[395147476,1764479407317,-255.92714014,0.00012972,2]
[395147477,1764479409472,-250.0,0.00012972,2]
[395147478,1764479411580,-278.92725152,0.00012972,2]
[395147479,1764479413691,-250.0,0.00012972,2]
[395147481,1764479423143,171.17576405,0.00012872,2]
[395147482,1764479431713,200.44145503,0.00012971,2]
[395147483,1764479431765,403.28637308,0.00012971,2]
[395147485,1764479432173,-421.8679983,0.00012972,2]
[395147486,1764479432189,-527.11678612,0.00012972,2]
[395147487,1764479432201,-458.42519,0.00012972,2]
[395147488,1764479432230,-1519.52160099,0.00012972,2]
[395147489,1764479432286,-1182.08953082,0.00012972,2]
[395147490,1764479432343,-932.31905122,0.00012972,2]
[395147491,1764479432399,-2258.66831429,0.00012972,2]
[395147520,1764479434313,500.0,0.00012971,2]
[395147521,1764479434368,350.0,0.00012971,2]
[395147522,1764479434472,500.0,0.00012971,2]
[395147523,1764479434532,500.0,0.00012971,2]
[395147524,1764479434591,500.0,0.00012971,2]
[395147525,1764479434651,500.0,0.00012971,2]
[395147526,1764479434699,500.0,0.00012971,2]
[395147527,1764479434771,500.0,0.00012971,2]
[395147528,1764479434821,500.0,0.00012971,2]
[395147529,1764479434876,500.0,0.00012971,2]
[395147530,1764479435102,500.0,0.00012971,2]
[395147531,1764479435290,500.0,0.00012971,2]
[395147532,1764479438328,-666780.68767711,0.00012972,2]
[395147533,1764479438337,-2500.0,0.00012972,2]
[395147534,1764479438346,-3914.07550461,0.00012972,2]
[395147535,1764479438356,-307.93848892,0.00012972,2]
[395147536,1764479438365,-520.38859671,0.00013071,2]
[395147537,1764479438375,-1000.0,0.00013072,2]
[395147538,1764479438384,-500.0,0.00013072,2]
[395147539,1764479438393,-33399.3792,0.00013072,2]
[395147540,1764479438403,-250.0,0.00013072,2]
[395147541,1764479438412,-200.59633381,0.00013072,2]